bitfinex/quotes_ETHUSD_20241004
["timestamp","ask_amount","ask_price","bid_price","bid_amount"]
[1728005739643,5.056137,2373.4,2372.9,4.21421]
[1728005739803,3.0,2373.7,2373.3,4.21351]
[1728005739999,4.21271,2373.8,2373.2,4.21354]
[1728005740303,4.21271,2373.8,2373.0,4.72042996]
[1728005740304,4.21301,2373.6,2373.0,0.4222]
[1728005740503,0.421301,2373.5,2372.9,3.0]
[1728005740742,0.7954,2373.9,2373.0,4.21405]
[1728005740942,4.21283,2373.7,2373.2,4.21369]
[1728005741243,4.21258,2373.9,2373.4,0.7546]
[1728005741548,4.633838,2373.9,2373.4,0.7546]
[1728005741746,4.21266,2373.8,2373.4,0.7546]
[1728005741948,8.42593,2373.7,2373.4,0.7546]
[1728005742250,0.421258,2373.9,2373.1,5.67151553]
[1728005742445,4.21338,2373.4,2373.0,0.4222]
[1728005742690,4.21354,2373.3,2373.0,0.4222]
[1728005742888,4.21338,2373.4,2372.8,5.67151553]
[1728005743193,4.21373,2373.2,2372.8,5.67151553]
[1728005743830,4.21277,2373.8,2373.1,4.91691553]
[1728005743955,3.0,2373.9,2373.3,0.7546]
[1728005744292,4.21285,2373.7,2373.3,0.7546]
[1728005744694,4.2125,2373.9,2373.3,0.7546]
[1728005744865,4.2125,2373.9,2373.4,4.21327]
[1728005745212,4.21221,2374.1,2373.6,9.1304558]
[1728005745389,5.054619,2374.1,2373.6,4.9174858]
[1728005745555,4.21266,2373.8,2373.3,6.0942858]
[1728005745750,4.21283,2373.7,2373.3,6.0942858]
[1728005746063,4.21283,2373.7,2373.3,0.7546]
[1728005746064,4.21302,2373.6,2373.3,0.7546]
[1728005746907,5.055376,2373.7,2373.3,0.7546]
[1728005747699,5.054639,2374.1,2373.3,5.6720858]
[1728005748024,4.171517,2373.9,2373.4,4.21326]
[1728005748721,5.054639,2374.1,2373.4,4.21326]
[1728005749227,4.21252,2373.9,2373.3,5.6720858]
[1728005749413,4.21265,2373.8,2373.3,5.6720858]
[1728005749808,4.21275,2373.8,2373.3,5.6720858]
[1728005750011,4.21287,2373.7,2373.3,5.6720858]
[1728005750351,4.21319,2373.5,2373.2,0.4222]
[1728005750629,8.42648,2373.5,2373.2,0.4222]
[1728005750921,4.21364,2373.3,2372.9,0.8162]
[1728005751225,4.21374,2373.2,2372.9,0.8162]
[1728005751404,4.21374,2373.2,2372.7,3.4222]
[1728005751611,4.21364,2373.3,2372.7,3.4222]
[1728005751828,4.21364,2373.3,2372.8,4.2144]
[1728005751995,4.21373,2373.2,2372.7,3.4222]
[1728005752198,5.056333,2373.3,2372.7,4.21457]
[1728005752398,4.21325,2373.5,2372.8,4.21442]
[1728005752629,4.21325,2373.5,2372.9,9.13229286]
[1728005752922,4.21337,2373.4,2372.9,4.91814286]
[1728005753114,4.21373,2373.2,2372.7,0.4222]
[1728005753318,5.056352,2373.3,2372.7,4.63671]
[1728005753697,4.21327,2373.5,2372.8,4.91814286]
[1728005753911,4.21338,2373.4,2372.8,9.13239286]
[1728005754105,4.21327,2373.5,2372.9,4.2142]
[1728005755094,4.21338,2373.4,2372.9,4.2142]
[1728005755548,4.21338,2373.4,2372.8,13.34672286]
[1728005755835,4.21375,2373.2,2372.8,4.91814286]
[1728005756137,5.136045,2373.4,2372.8,4.91814286]
[1728005756138,4.21339,2373.4,2372.8,9.13255286]
[1728005756293,8.42688,2373.4,2372.8,9.13255286]
[1728005756496,4.21366,2373.3,2372.8,4.91814286]
[1728005756711,4.2138,2373.2,2372.8,4.91814286]
[1728005757138,4.21366,2373.3,2372.7,0.4222]
[1728005757139,4.21391,2373.1,2372.7,0.4222]
[1728005757766,4.21444,2372.8,2372.3,3.0]
[1728005758051,4.2144,2372.9,2372.3,5.0315]
[1728005758562,4.21436,2372.9,2372.3,5.0315]
[1728005759119,4.21436,2372.9,2372.3,0.8162]
[1728005759349,4.21436,2372.9,2372.4,4.21512]
[1728005760714,0.7999,2373.0,2372.4,4.21512]
[1728005760960,0.7999,2373.0,2372.3,0.8162]
[1728005760961,4.21439,2372.9,2372.3,0.8162]
[1728005761335,4.21435,2372.9,2372.3,5.03141]
[1728005761737,4.21443,2372.8,2372.3,5.03141]
[1728005762079,4.21435,2372.9,2372.3,5.03141]
[1728005762838,5.056726,2373.1,2372.5,4.21494]
[1728005763041,4.21373,2373.2,2372.6,4.21467]
[1728005765358,0.7999,2373.3,2372.5,4.91814286]
[1728005765589,4.21423,2373.0,2372.5,4.91814286]
[1728005765944,8.42842,2373.0,2372.5,4.91814286]
[1728005766150,4.21419,2373.0,2372.5,4.91814286]
[1728005766392,8.42843,2373.0,2372.5,4.91814286]
[1728005766592,4.21473,2372.7,2372.4,0.4222]
[1728005766992,8.42948,2372.7,2372.4,0.4222]
[1728005767484,8.42948,2372.7,2372.2,0.4222]
[1728005767649,4.21509,2372.5,2372.0,0.8104]
[1728005767861,4.21479,2372.6,2372.0,1.2326]
[1728005768049,4.21479,2372.6,2372.0,5.44835]
[1728005768284,8.42968,2372.6,2372.0,5.44835]
[1728005768598,5.2179228,2372.6,2372.0,5.44835]
[1728005768764,4.21479,2372.6,2372.1,4.21565]
[1728005770697,4.21453,2372.8,2372.1,4.21565]
[1728005770904,8.42911,2372.8,2372.1,8.43116]
[1728005771058,4.21453,2372.8,2372.2,4.21538]
[1728005771395,8.42909,2372.8,2372.2,4.21538]
[1728005771903,4.21416,2373.0,2372.5,4.21495]
[1728005772107,4.21407,2373.0,2372.6,0.8104]
[1728005773019,4.21391,2373.1,2372.6,0.8104]
[1728005774014,4.21408,2373.0,2372.6,0.8104]
[1728005774221,5.011083,2373.2,2372.6,0.8104]
[1728005774434,4.21343,2373.4,2372.8,4.91814286]
[1728005774612,4.21343,2373.4,2372.8,1.04495941]
[1728005775120,4.21374,2373.2,2372.8,1.04495941]
[1728005775428,4.21355,2373.3,2372.8,1.04495941]
[1728005776022,4.21386,2373.2,2372.7,0.4222]
[1728005776757,8.0687,2374.3,2373.4,4.21324]
[1728005776910,8.51321468,2374.9,2372.8,3.4222]
[1728005776911,4.65156284,2374.5,2373.8,4.21253]
[1728005777248,0.7587,2374.6,2373.8,1.41540029]
[1728005777249,8.42365,2374.3,2373.8,1.41540029]
[1728005777548,4.21141,2374.5,2373.7,0.8104]
[1728005777762,0.7587,2374.6,2373.6,0.4222]
[1728005777763,4.21162,2374.4,2373.6,0.4222]
[1728005777933,4.21162,2374.4,2373.2,4.21362]
[1728005777934,4.21351,2373.4,2373.2,0.4222]
[1728005778111,4.21351,2373.4,2373.0,0.8104]
[1728005778823,4.21306,2373.6,2373.0,0.8104]
[1728005778824,4.2131,2373.6,2373.0,0.8104]
[1728005779043,3.8007,2374.0,2373.1,4.91814286]
[1728005779247,4.2124,2374.0,2373.5,0.7663]
[1728005779549,4.2124,2374.0,2373.5,4.97947]
[1728005779751,1.221862,2374.3,2373.5,4.97947]
[1728005779907,1.221862,2374.3,2373.5,4.97938]
[1728005779908,4.21209,2374.2,2373.5,4.97938]
[1728005780108,4.21224,2374.1,2373.5,4.97938]
[1728005780349,0.8007,2374.7,2373.7,4.91814286]
[1728005780515,4.21136,2374.6,2374.1,0.7663]
[1728005780722,4.21135,2374.6,2374.1,0.7663]
[1728005781105,8.42272,2374.6,2374.1,0.7663]
[1728005781627,4.21135,2374.6,2374.1,0.7663]
[1728005782425,8.4227,2374.6,2374.1,0.7663]
[1728005782627,4.21145,2374.5,2374.1,0.7663]
[1728005782832,4.21222,2374.1,2373.8,1.1885]
[1728005783127,4.21244,2374.0,2373.8,0.4222]
[1728005783325,4.21247,2373.9,2373.8,0.4222]
[1728005783618,1.64298,2374.5,2373.3,10.32004286]
[1728005783619,4.21267,2373.8,2373.3,10.32004286]
[1728005783813,4.21167,2374.4,2373.0,5.68444286]
[1728005783814,0.8007,2373.9,2373.0,5.68444286]
[1728005784436,4.21328,2373.5,2373.0,5.68444286]
[1728005784673,0.8007,2373.9,2373.0,5.68444286]
[1728005784674,8.42515,2373.9,2373.2,4.21358]
[1728005785169,7.797285,2374.3,2373.0,6.10664286]
[1728005785170,4.21218,2374.1,2373.6,9.13114286]
[1728005785378,7.797285,2374.3,2373.6,9.13114286]
[1728005785541,0.585465,2374.3,2373.7,4.21281]
[1728005785742,0.585465,2374.3,2373.6,5.34034286]
[1728005785743,4.2123,2374.0,2373.6,5.34034286]
[1728005785929,4.21267,2373.8,2373.4,0.7663]
[1728005786383,4.2123,2374.0,2373.4,4.97965]
[1728005786937,3.8007,2374.5,2373.8,4.21262]
[1728005786938,4.2116,2374.4,2373.8,4.21262]
[1728005787134,4.21133,2374.6,2373.8,4.21262]
[1728005787135,4.21133,2374.6,2373.9,4.91814286]
[1728005787358,4.21133,2374.6,2374.0,4.21219]
[1728005787558,4.21133,2374.6,2374.1,0.7663]
[1728005788140,4.21159,2374.4,2374.1,0.7663]
[1728005788330,4.21183,2374.3,2373.8,0.7663]
[1728005788773,4.21159,2374.4,2373.8,4.97893]
[1728005789437,0.55,2374.4,2373.6,0.4222]
[1728005789643,4.21297,2373.7,2373.4,0.7663]
[1728005789843,4.21297,2373.7,2373.1,5.34034286]
[1728005789844,4.21314,2373.6,2373.1,6.10664286]
[1728005790072,4.21324,2373.5,2373.1,6.10664286]
[1728005790277,4.21293,2373.7,2373.1,6.10664286]
[1728005790439,4.21267,2373.8,2373.2,4.2136]
[1728005790640,4.21267,2373.8,2373.1,11.35256915]
[1728005790641,3.8007,2374.2,2373.1,7.13870915]
[1728005790975,4.21249,2373.9,2373.1,6.10664286]
[1728005791179,4.21249,2373.9,2373.3,4.21352]
[1728005791702,4.21249,2373.9,2373.4,4.91814286]
[1728005791902,4.21219,2374.1,2373.5,0.7663]
[1728005792113,4.21219,2374.1,2373.5,4.97948]
[1728005792457,4.21247,2373.9,2373.5,0.7663]
[1728005792687,4.633429,2374.1,2373.5,0.7663]
[1728005792886,4.21221,2374.1,2373.5,4.97941]
[1728005793204,4.21187,2374.3,2373.8,0.7663]
[1728005793521,4.21153,2374.5,2374.0,9.13043286]
[1728005794266,4.21178,2374.3,2374.0,4.91814286]
[1728005794472,4.21178,2374.3,2373.8,1.1885]
[1728005794868,4.21178,2374.3,2373.8,0.7663]
[1728005795067,4.21222,2374.1,2373.8,0.7663]
[1728005795956,4.21187,2374.3,2373.8,0.7663]
[1728005796389,4.21214,2374.1,2373.8,0.7663]
[1728005796606,4.21187,2374.3,2373.8,0.7663]
[1728005796607,4.21195,2374.2,2373.8,0.7663]
[1728005796905,4.2123,2374.0,2373.8,0.7663]
[1728005797569,4.21213,2374.1,2373.8,0.7663]
[1728005798398,4.21242,2374.0,2373.7,0.4222]
[1728005798608,0.842382,2374.2,2373.7,0.4222]
[1728005798609,4.21264,2373.9,2373.7,0.4222]
[1728005798903,4.2126,2373.9,2373.5,0.8083]
[1728005800106,4.2122,2374.1,2373.5,0.8083]
[1728005800271,4.21257,2373.9,2373.5,0.8083]
[1728005801161,4.21297,2373.7,2373.3,0.4222]
[1728005801395,4.21301,2373.6,2373.3,0.4222]
[1728005802073,0.773,2373.9,2373.3,0.4222]
[1728005802275,4.21354,2373.3,2372.9,0.4222]
[1728005802613,4.21401,2373.1,2372.5,10.80249074]
[1728005802905,4.2142,2373.0,2372.5,10.80249074]
[1728005803071,4.21401,2373.1,2372.5,10.80249074]
[1728005803282,5.408054,2373.3,2372.5,11.949782]
[1728005803462,5.408014,2373.3,2372.5,11.949782]
[1728005803665,5.408014,2373.3,2372.7,4.21458]
[1728005804168,4.21377,2373.2,2372.6,4.21478]
[1728005804367,5.408014,2373.3,2372.8,4.91814286]
[1728005804567,4.635014,2373.3,2372.8,4.91814286]
[1728005804870,8.848714,2373.3,2372.8,4.91814286]
[1728005805071,4.635014,2373.3,2372.8,4.91814286]
[1728005805698,4.21323,2373.5,2372.8,4.91814286]
[1728005805905,4.21354,2373.3,2372.8,9.55465286]
[1728005806293,8.42654,2373.5,2372.9,0.8083]
[1728005806494,4.21323,2373.5,2373.1,4.91814286]
[1728005807211,4.21284,2373.7,2373.1,4.91814286]
[1728005807212,8.42581,2373.7,2373.1,4.91814286]
[1728005807417,4.21252,2373.9,2373.4,4.91814286]
[1728005807609,4.21295,2373.7,2373.4,4.91814286]
[1728005807912,4.21294,2373.7,2373.4,4.91814286]
[1728005808114,4.21318,2373.5,2373.1,5.34034286]
[1728005808418,4.21348,2373.4,2373.1,5.34034286]
[1728005808925,4.21359,2373.3,2373.1,5.34034286]
[1728005809076,4.21359,2373.3,2372.9,0.8083]
[1728005809278,4.16359,2373.3,2372.9,0.8083]
[1728005809790,4.21336,2373.4,2373.1,4.91814286]
[1728005810520,4.21356,2373.3,2373.1,4.91814286]
[1728005810718,4.21329,2373.5,2373.1,4.91814286]
[1728005811030,4.21357,2373.3,2373.1,4.91814286]
[1728005811522,4.21391,2373.1,2372.8,4.91814286]
[1728005812321,5.056326,2373.3,2372.8,4.91814286]
[1728005812841,9.270036,2373.3,2372.8,4.91814286]
[1728005813489,5.056326,2373.3,2372.8,4.91814286]
[1728005813673,5.056326,2373.3,2372.6,0.8003]
[1728005813674,4.21425,2372.9,2372.6,0.8003]
[1728005814829,9.271416,2372.9,2372.6,0.8003]
[1728005815117,4.21425,2372.9,2372.6,0.8003]
[1728005815317,4.21457,2372.8,2372.5,4.91814286]
[1728005815818,4.21399,2373.1,2372.5,4.91814286]
[1728005816020,8.01356,2373.3,2372.8,5.71844286]
[1728005816196,7.21356,2373.3,2372.8,5.71844286]
[1728005817119,4.21384,2373.2,2372.8,0.8003]
[1728005817490,4.21427,2372.9,2372.5,0.8003]
[1728005817695,5.057122,2372.9,2372.5,0.8003]
[1728005817917,8.42849,2373.0,2372.5,0.8003]
[1728005818517,4.21424,2373.0,2372.5,0.8003]
[1728005818847,4.21391,2373.1,2372.5,9.93340286]
[1728005819002,4.21382,2373.2,2372.6,4.21467]
[1728005819205,7.21354,2373.3,2372.7,4.21458]
[1728005819430,7.21354,2373.3,2372.8,5.76106786]
[1728005819431,4.21354,2373.3,2372.8,5.76106786]
[1728005819643,4.21373,2373.2,2372.8,4.91814286]
[1728005819850,4.21401,2373.1,2372.8,4.91814286]
[1728005820066,4.21409,2373.0,2372.7,0.4222]
[1728005820349,4.21409,2373.0,2372.5,9.93335286]
[1728005820548,4.21409,2373.0,2372.5,10.92668815]
[1728005820752,4.21409,2373.0,2372.5,6.71177815]
[1728005821051,4.21445,2372.8,2372.5,6.71177815]
[1728005821245,4.21409,2373.0,2372.5,6.71177815]
[1728005821403,4.21425,2372.9,2372.5,6.71177815]
[1728005821601,4.21409,2373.0,2372.5,6.71177815]
[1728005822216,4.21409,2373.0,2372.5,10.92670815]
[1728005822969,4.21409,2373.0,2372.5,6.71177815]
[1728005823115,4.21409,2373.0,2372.5,10.92670815]
[1728005823458,4.21409,2373.0,2372.6,1.44157701]
[1728005823743,8.42832,2373.0,2372.6,1.44157701]
[1728005824107,4.21427,2372.9,2372.6,1.44157701]
[1728005824302,4.2148,2372.6,2372.3,1.2523]
[1728005824509,4.2148,2372.6,2372.3,0.8301]
[1728005824510,4.21507,2372.5,2372.3,0.8301]
[1728005824746,4.21507,2372.5,2372.0,0.4222]
[1728005824747,4.21507,2372.5,2372.0,1.2523]
[1728005824956,4.21507,2372.5,2372.0,1.79914]
[1728005825514,4.21516,2372.4,2372.1,3.99957769]
[1728005827174,8.4304,2372.4,2372.1,3.99957769]
[1728005827323,0.7694,2373.2,2372.3,3.99957769]
[1728005827528,4.21419,2373.0,2372.6,0.8301]
[1728005827754,4.98322,2373.2,2372.6,0.8301]
[1728005827755,3.0,2373.1,2372.6,0.8301]
[1728005828072,8.0794,2373.6,2372.8,4.92010615]
[1728005828268,4.21386,2373.2,2372.8,4.92010615]
[1728005828421,4.21386,2373.2,2372.6,5.467]
[1728005828625,4.21408,2373.0,2372.6,2.71251561]
[1728005828965,4.21408,2373.0,2372.6,1.2523]
[1728005829290,4.21384,2373.2,2372.6,1.2523]
[1728005829452,4.21384,2373.2,2372.7,4.21458]
[1728005830446,4.214,2373.1,2372.6,1.2523]
[1728005830649,4.21384,2373.2,2372.7,5.16285712]
[1728005830848,4.21271,2373.8,2373.1,9.13395615]
[1728005831150,4.21102,2374.8,2372.8,0.50648874]
[1728005831151,4.21203,2374.2,2373.4,4.92010615]
[1728005831368,4.21203,2374.2,2373.7,9.96302615]
[1728005831737,4.21203,2374.2,2373.7,5.75020615]
[1728005831943,4.21213,2374.1,2373.7,5.75020615]
[1728005832150,4.2124,2374.0,2373.7,5.75020615]
[1728005832481,4.21213,2374.1,2373.7,0.8301]
[1728005832482,4.21248,2373.9,2373.7,0.8301]
[1728005832774,8.42446,2374.1,2373.7,0.8301]
[1728005833038,4.2122,2374.1,2373.7,0.8301]
[1728005833777,4.21184,2374.3,2373.7,5.75020615]
[1728005833950,4.21152,2374.5,2374.0,4.92010615]
[1728005834460,4.2108,2374.9,2374.3,4.92010615]
[1728005834878,4.2108,2374.9,2374.3,5.00433457]
[1728005835079,4.63188,2374.9,2374.4,0.8301]
[1728005835600,4.21041,2375.1,2374.4,0.8301]
[1728005835779,4.21005,2375.3,2374.6,4.92010615]
[1728005835945,4.21005,2375.3,2374.7,5.04115]
[1728005836149,4.20968,2375.5,2374.9,4.2107]
[1728005836351,4.20968,2375.5,2375.3,0.8301]
[1728005836573,5.051583,2375.5,2375.3,0.8301]
[1728005836955,4.20981,2375.4,2375.3,0.8301]
[1728005837155,4.20981,2375.4,2375.1,0.8301]
[1728005837355,4.21047,2375.1,2374.7,0.8301]
[1728005837564,4.21075,2374.9,2374.7,0.8301]
[1728005837796,4.21047,2375.1,2374.7,0.8301]
[1728005838100,0.842053,2375.1,2374.7,0.8301]
[1728005838253,4.21088,2374.8,2374.7,0.8301]
[1728005838459,4.21087,2374.9,2374.7,0.8301]
[1728005839655,4.21083,2374.9,2374.7,0.8301]
[1728005841610,4.21042,2375.1,2374.7,0.8301]
[1728005841901,4.21053,2375.0,2374.7,0.8301]
[1728005842480,4.631462,2375.1,2374.7,0.8301]
[1728005842801,3.0,2375.4,2374.7,0.91432284]
[1728005843026,5.0172,2375.9,2375.1,4.21023]
[1728005843162,4.209,2375.9,2375.2,4.92010615]
[1728005843360,0.50172,2375.8,2375.3,5.02305]
[1728005843916,4.20866,2376.1,2375.5,9.12963615]
[1728005844410,4.20864,2376.1,2375.5,4.92010615]
[1728005844700,4.20864,2376.1,2375.6,5.10682377]
[1728005845285,4.20832,2376.3,2375.6,0.89738377]
[1728005845489,4.20862,2376.1,2375.6,0.89738377]
[1728005846204,4.20847,2376.2,2375.6,0.8132]
[1728005846408,4.20826,2376.3,2375.3,0.8132]
[1728005846618,4.20826,2376.3,2374.8,7.46]
[1728005846619,4.20982,2375.4,2375.0,0.8132]
[1728005846907,4.21021,2375.2,2375.0,0.8132]
[1728005847064,4.2099,2375.4,2375.0,0.8132]
[1728005847410,3.0,2375.9,2375.0,5.59704061]
[1728005847411,4.20962,2375.6,2375.0,5.59704061]
[1728005847703,4.20966,2375.5,2375.0,1.38653061]
[1728005848325,3.0,2375.9,2375.0,1.38653061]
[1728005848326,4.21031,2375.2,2375.0,0.8132]
[1728005848504,4.21089,2374.8,2374.7,0.8132]
[1728005848666,4.21089,2374.8,2374.4,0.8132]
[1728005848872,4.21118,2374.7,2374.4,0.8132]
[1728005849172,7.20989,2375.4,2374.5,4.92010615]
[1728005849400,4.20954,2375.6,2374.8,9.13087615]
[1728005849600,4.20954,2375.6,2375.0,5.02361]
[1728005849921,8.41917,2375.6,2375.0,5.02361]
[1728005850071,4.20976,2375.5,2375.0,0.8132]
[1728005850776,8.41981,2375.4,2375.0,0.8132]
[1728005850999,4.20983,2375.4,2375.0,0.8132]
[1728005851517,8.41978,2375.4,2375.0,0.8132]
[1728005851671,4.20983,2375.4,2375.0,0.8132]
[1728005852067,4.21009,2375.3,2375.0,0.8132]
[1728005852496,8.41976,2375.4,2375.0,0.8132]
[1728005852696,4.20983,2375.4,2375.0,0.8132]
[1728005854112,8.41977,2375.4,2375.0,0.8132]
[1728005854416,4.20983,2375.4,2375.0,0.8132]
[1728005854725,4.20951,2375.6,2375.0,6.06034661]
[1728005855023,7.20913,2375.8,2375.1,4.2102]
[1728005855175,5.01703,2376.0,2375.1,4.92010615]
[1728005855176,5.0171,2376.0,2375.1,4.92010615]
[1728005855376,4.20844,2376.2,2375.5,5.02343]
[1728005855616,4.20844,2376.2,2375.6,4.20933]
[1728005855799,4.20844,2376.2,2375.5,5.02343]
[1728005855800,4.20862,2376.1,2375.5,5.02343]
[1728005856229,4.20844,2376.2,2375.6,4.20945]
[1728005856435,4.20881,2376.0,2375.7,0.923288]
[1728005856616,4.20881,2376.0,2375.5,0.8138]
[1728005856815,4.20844,2376.2,2375.5,9.23293]
[1728005857049,4.20844,2376.2,2375.5,0.8138]
[1728005857253,5.01134,2376.6,2375.5,0.8138]
[1728005857434,4.20883,2376.0,2375.5,0.8138]
[1728005857634,8.41775,2376.0,2375.5,0.8138]
[1728005857963,4.20883,2376.0,2375.5,0.8138]
[1728005858969,4.20849,2376.2,2375.5,5.02339]
[1728005858970,4.20858,2376.1,2375.5,5.02339]
[1728005859111,5.01142,2376.6,2376.0,4.20871]
[1728005859473,5.01142,2376.6,2375.8,4.2091]
[1728005859474,4.20827,2376.3,2375.8,0.8138]
[1728005859756,4.20842,2376.2,2375.8,0.8138]
[1728005860274,4.20842,2376.2,2375.9,0.4222]
[1728005860448,4.20921,2375.8,2375.5,0.8138]
[1728005860609,4.20921,2375.8,2375.1,4.92010615]
[1728005860610,4.20956,2375.6,2375.1,0.8138]
[1728005861304,4.20983,2375.4,2375.1,0.8138]
[1728005861642,4.20897,2375.9,2375.3,4.20998]
[1728005861820,3.0,2376.2,2375.6,5.02318]
[1728005861821,4.20852,2376.2,2375.6,5.02318]
[1728005862019,0.8036,2376.4,2375.6,5.02318]
[1728005862208,5.01177,2376.4,2375.7,4.20921]
[1728005862408,3.0,2376.5,2375.9,4.20875]
[1728005862622,4.20774,2376.6,2375.8,4.20899]
[1728005862623,4.20807,2376.4,2375.8,4.20899]
[1728005862867,5.01125,2376.7,2376.1,4.20841]
[1728005863009,4.93837,2376.8,2376.2,4.20837]
[1728005863231,4.93837,2376.8,2376.3,0.8138]
[1728005863461,4.20771,2376.6,2376.3,0.8138]
[1728005863643,4.208,2376.5,2376.3,0.8138]
[1728005863841,4.208,2376.5,2376.0,0.4222]
[1728005863842,4.20826,2376.3,2376.0,1.236]
[1728005864366,0.841571,2376.5,2375.6,4.63153]
[1728005864367,4.20851,2376.2,2375.6,4.63153]
[1728005864565,4.20851,2376.2,2375.7,0.8138]
[1728005864566,8.41706,2376.2,2375.7,0.8138]
[1728005864743,4.20851,2376.2,2375.7,0.8138]
[1728005864938,4.20814,2376.4,2375.8,4.20907]
[1728005865168,5.2142471,2376.4,2375.8,4.20907]
[1728005865556,4.2084,2376.2,2375.7,0.8138]
[1728005866185,4.20814,2376.4,2375.7,5.02292]
[1728005866390,8.4163,2376.4,2375.7,5.02292]
[1728005866547,4.20834,2376.3,2375.7,5.02292]
[1728005866890,4.20814,2376.4,2375.9,4.6311]
[1728005867309,4.20776,2376.6,2375.9,8.83985]
[1728005867452,4.20788,2376.5,2375.9,4.63095]
[1728005867647,4.20776,2376.6,2375.9,4.63095]
[1728005867959,0.8036,2376.7,2375.9,4.63095]
[1728005867960,4.20826,2376.3,2375.9,0.4222]
[1728005868979,4.20819,2376.4,2375.8,0.4222]
[1728005869182,4.20819,2376.4,2375.8,4.6313]
[1728005869385,4.20819,2376.4,2375.8,5.596734]
[1728005869386,4.20815,2376.4,2375.8,5.596734]
[1728005869689,4.20852,2376.2,2375.7,5.02306]
[1728005870390,4.20858,2376.1,2375.7,0.8138]
[1728005871189,4.20852,2376.2,2375.7,0.8138]
[1728005871390,0.841665,2376.2,2375.7,0.8138]
[1728005871592,4.20906,2375.9,2375.4,0.7909]
[1728005872552,4.20906,2375.9,2375.4,5.00071]
[1728005872892,4.20906,2375.9,2375.5,0.4222]
[1728005873188,4.20887,2376.0,2375.5,0.4222]
[1728005873361,9.340496,2376.0,2375.5,0.4222]
[1728005873694,8.41773,2376.0,2375.5,0.4222]
[1728005874251,8.41668,2376.3,2375.7,4.20926]
[1728005874451,4.20895,2375.9,2375.6,0.4222]
[1728005874752,8.41668,2376.3,2375.5,4.29381771]
[1728005874958,8.41668,2376.3,2375.7,4.20926]
[1728005875147,4.2085,2376.2,2375.7,4.20926]
[1728005875346,4.20831,2376.3,2375.6,4.63165]
[1728005875590,4.20859,2376.1,2375.6,0.4222]
[1728005876203,4.20917,2375.8,2375.4,0.7909]
[1728005876365,0.801861,2376.3,2375.4,0.7909]
[1728005876697,0.8103,2376.4,2375.1,7.21022]
[1728005876698,4.20948,2375.6,2375.1,5.00112]
[1728005876932,4.20968,2375.5,2375.1,0.7909]
[1728005878315,0.8103,2375.9,2375.0,0.4222]
[1728005878316,4.20938,2375.7,2375.2,4.21015]
[1728005878820,4.20901,2375.9,2375.3,4.20989]
[1728005879025,4.20901,2375.9,2375.3,4.79417009]
[1728005879317,8.41806,2375.9,2375.3,4.79417009]
[1728005879487,8.41806,2375.9,2375.3,4.709969]
[1728005880296,4.20912,2375.8,2375.3,4.709969]
[1728005880598,11.1203,2376.2,2375.2,0.7909]
[1728005880599,4.20953,2375.6,2375.2,0.7909]
[1728005880801,8.41977,2375.4,2375.2,0.7909]
[1728005881004,4.20983,2375.4,2375.2,0.7909]
[1728005881721,10.31,2376.2,2375.2,0.7909]
[1728005881722,4.20913,2375.8,2375.2,0.7909]
[1728005881936,4.20883,2376.0,2375.4,4.2098]
[1728005882815,4.20883,2376.0,2375.3,5.132174]
[1728005883022,4.20858,2376.1,2375.6,0.7909]
[1728005883177,4.20928,2375.7,2375.6,0.7909]
[1728005883526,4.20911,2375.8,2375.3,1.79740305]
[1728005883673,8.41768,2376.0,2375.4,4.2098]
[1728005883876,0.8103,2376.3,2375.3,6.00738305]
[1728005883877,4.2085,2376.2,2375.6,1.1783]
[1728005884106,4.20815,2376.4,2375.8,4.2091]
[1728005884309,12.269,2376.6,2376.0,0.7561]
[1728005884310,4.95903,2376.6,2376.0,0.7561]
[1728005884607,4.20857,2376.1,2376.0,0.7561]
[1728005884776,4.20801,2376.5,2375.9,0.4222]
[1728005884777,4.20875,2376.0,2375.9,0.4222]
[1728005884977,4.2091,2375.8,2375.7,0.7561]
[1728005885329,4.2091,2375.8,2375.4,1.1783]
[1728005885330,4.20956,2375.6,2375.4,1.1783]
[1728005885655,4.20917,2375.8,2375.4,1.1783]
[1728005885978,4.20964,2375.5,2375.4,0.4222]
[1728005886675,4.20931,2375.7,2375.4,0.4222]
[1728005888420,0.420877,2375.9,2375.4,0.4222]
[1728005888421,4.20964,2375.5,2375.4,0.4222]
[1728005888994,4.20986,2375.4,2375.2,0.4222]
[1728005889325,4.20986,2375.4,2374.8,0.7561]
[1728005889326,4.2102,2375.2,2374.8,0.7561]
[1728005889632,4.21038,2375.1,2374.8,0.7561]
[1728005889796,4.2102,2375.2,2374.8,0.7561]
[1728005889797,4.21053,2375.0,2374.8,0.7561]
[1728005890192,4.21053,2375.0,2374.5,0.7561]
[1728005890193,4.2107,2374.9,2374.5,0.7561]
[1728005890380,4.21053,2375.0,2374.5,1.31021406]
[1728005890381,4.21054,2375.0,2374.5,1.31021406]
[1728005890887,4.21073,2374.9,2374.5,1.31021406]
[1728005891310,4.21054,2375.0,2374.5,1.31021406]
[1728005891517,4.96105,2375.4,2374.5,1.31021406]
[1728005891819,4.96105,2375.4,2374.9,0.7561]
[1728005891820,4.20985,2375.4,2374.9,0.7561]
[1728005892324,4.20956,2375.6,2375.0,4.21048]
[1728005892325,3.0,2375.5,2375.0,4.21048]
[1728005892907,4.20956,2375.6,2375.0,4.21048]
[1728005893082,4.20956,2375.6,2375.1,4.21031]
[1728005893794,4.20917,2375.8,2375.2,0.7561]
[1728005894194,0.7512,2376.0,2375.0,0.7561]
[1728005894195,4.20948,2375.6,2375.0,0.7561]
[1728005894617,4.630528,2375.6,2375.0,4.96654]